[Event "56th Biel Festival MTO 2023"]
[White "Jaksland,Tim"]
[Black "Asllani,Dorian"]
[Site "Biel"]
[Round "2.33"]
[Annotator "ChessBase"]
[Result "0-1"]
[Date "2023.07.19"]
[WhiteElo "2136"]
[BlackElo "2272"]
[PlyCount "72"]
[TimeControl "60"]

1. e4 {[%emt 0:0:0]} c5 {[%emt 0:0:0]} 2. c3 {[%emt 0:0:0]} d5 {[%emt 0:0:0]} 3. exd5 {[%emt 0:0:0]} Qxd5 {[%emt 0:0:0]} 4. d4 {[%emt 0:0:0]} Nc6 {[%emt 0:0:0]} 5. Nf3 {[%emt 0:0:0]} Bg4 {[%emt 0:0:0]} 6. dxc5 {[%emt 0:1:47]} Qxd1+ {[%emt 0:0:0]} 7. Kxd1 {[%emt 0:0:4]} e6 {[%emt 0:0:0]} 8. Be3 {[%emt 0:3:5]} Nge7 {[%emt 0:0:0]} 9. Be2 {[%emt 0:14:28]} Nd5 {[%emt 0:44:19]} 10. b4 {[%emt 0:5:55]} O-O-O {[%emt 0:21:56]} 11. Kc2 {[%emt 0:5:25]} Be7 {[%emt 0:6:6]} 12. Nbd2 {[%emt 0:20:2]} Bf6 {[%emt 0:4:56]} 13. Bb5 {[%emt 0:29:29]} Bxc3 {[%emt 0:8:22]} 14. a3 {[%emt 0:9:46]} Bxa1 {[%emt 0:4:23]} 15. Rxa1 {[%emt 0:0:5]} Nce7 {[%emt 0:2:54]} 16. Ne5 {[%emt 0:6:19]} Bf5+ {[%emt 0:5:3]} 17. Kc1 {[%emt 0:0:8]} Bg6 {[%emt 0:0:30]} 18. Ndc4 {[%emt 0:1:29]} Nf5 {[%emt 0:0:4]} 19. g4 {[%emt 0:0:38]} Nfxe3 {[%emt 0:0:16]} 20. fxe3 {[%emt 0:0:5]} Nc3 {[%emt 0:0:18]} 21. a4 {[%emt 0:1:20]} f6 {[%emt 0:1:10]} 22. Nxg6 {[%emt 0:0:48]} hxg6 {[%emt 0:0:31]} 23. Nd6+ {[%emt 0:0:7]} Kb8 {[%emt 0:0:18]} 24. Kb2 {[%emt 0:0:44]} Nxb5 {[%emt 0:0:13]} 25. axb5 {[%emt 0:0:7]} Rxh2+ {[%emt 0:0:5]} 26. Kc3 {[%emt 0:0:7]} Re2 {[%emt 0:0:57]} 27. Kd3 {[%emt 0:0:24]} Rg2 {[%emt 0:0:14]} 28. Rh1 {[%emt 0:0:25]} Rxg4 {[%emt 0:0:39]} 29. Rh7 {[%emt 0:0:5]} Rg8 {[%emt 0:0:5]} 30. Kc3 {[%emt 0:0:18]} g5 {[%emt 0:0:56]} 31. Rh1 {[%emt 0:1:18]} Rh4 {[%emt 0:0:46]} 32. Rd1 {[%emt 0:0:25]} Rd8 {[%emt 0:0:38]} 33. c6 {[%emt 0:1:31]} Kc7 {[%emt 0:0:20]} 34. cxb7 {[%emt 0:0:31]} Rhh8 {[%emt 0:0:1]} 35. Ra1 {[%emt 0:0:32]} Rxd6 {[%emt 0:0:24]} 36. Rxa7 {[%emt 0:0:9]} Rb8 {[%emt 0:0:9]} 0-1

[Event "56th Biel Festival MTO 2023"]
[White "Abdulrahman Mohammad,Al Taher"]
[Black "Misiano,Franco"]
[Site "Biel"]
[Round "2.34"]
[Annotator "ChessBase"]
[Result "1-0"]
[Date "2023.07.19"]
[WhiteElo "2258"]
[BlackElo "2133"]
[PlyCount "113"]
[TimeControl "60"]

1. d4 {[%emt 0:0:0]} d5 {[%emt 0:0:0]} 2. c4 {[%emt 0:0:0]} c6 {[%emt 0:0:0]} 3. Nc3 {[%emt 0:0:0]} Nf6 {[%emt 0:0:0]} 4. e3 {[%emt 0:0:0]} e6 {[%emt 0:0:0]} 5. Nf3 {[%emt 0:0:0]} Nbd7 {[%emt 0:0:0]} 6. Qc2 {[%emt 0:0:0]} Bd6 {[%emt 0:0:0]} 7. Bd3 {[%emt 0:0:0]} dxc4 {[%emt 0:0:0]} 8. Bxc4 {[%emt 0:0:0]} O-O {[%emt 0:0:0]} 9. O-O {[%emt 0:0:0]} b5 {[%emt 0:0:0]} 10. Bd3 {[%emt 0:0:0]} Bb7 {[%emt 0:0:0]} 11. e4 {[%emt 0:0:0]} e5 {[%emt 0:0:0]} 12. dxe5 {[%emt 0:0:0]} Nxe5 {[%emt 0:0:0]} 13. Nxe5 {[%emt 0:0:0]} Bxe5 {[%emt 0:0:0]} 14. h3 {[%emt 0:0:0]} Re8 {[%emt 0:0:0]} 15. Be3 {[%emt 0:1:0]} a6 {[%emt 0:0:26]} 16. f4 {[%emt 0:7:9]} Bd4 {[%emt 0:0:43]} 17. Bxd4 {[%emt 0:2:34]} Qxd4+ {[%emt 0:0:10]} 18. Kh2 {[%emt 0:0:12]} c5 {[%emt 0:14:12]} 19. e5 {[%emt 0:10:15]} c4 {[%emt 0:0:26]} 20. Bf5 {[%emt 0:6:57]} b4 {[%emt 0:1:30]} 21. Ne2 {[%emt 0:6:29]} Qe3 {[%emt 0:5:18]} 22. Ng3 {[%emt 0:4:30]} Nd5 {[%emt 0:10:17]} 23. Bxh7+ {[%emt 0:3:17]} Kf8 {[%emt 0:1:20]} 24. Rae1 {[%emt 0:6:32]} Qb6 {[%emt 0:0:38]} 25. Qxc4 {[%emt 0:4:9]} Rac8 {[%emt 0:3:20]} 26. Qe2 {[%emt 0:6:37]} Qh6 {[%emt 0:3:47]} 27. Be4 {[%emt 0:6:50]} Nxf4 {[%emt 0:1:38]} 28. Rxf4 {[%emt 0:1:38]} Qxf4 {[%emt 0:0:7]} 29. Bxb7 {[%emt 0:0:5]} Rc5 {[%emt 0:0:15]} 30. Rf1 {[%emt 0:0:40]} Qxe5 {[%emt 0:0:34]} 31. Qxe5 {[%emt 0:0:6]} Rexe5 {[%emt 0:1:4]} 32. Bxa6 {[%emt 0:3:1]} Rc2 {[%emt 0:0:20]} 33. Rf5 {[%emt 0:3:37]} Rxf5 {[%emt 0:3:37]} 34. Nxf5 {[%emt 0:0:2]} Rxb2 {[%emt 0:0:8]} 35. Bc4 {[%emt 0:0:6]} Rd2 {[%emt 0:1:50]} 36. Ne3 {[%emt 0:1:4]} g6 {[%emt 0:4:27]} 37. Bb3 {[%emt 0:0:43]} f5 {[%emt 0:1:9]} 38. Kg3 {[%emt 0:1:50]} Rd4 {[%emt 0:1:27]} 39. Nc2 {[%emt 0:0:58]} Rd3+ {[%emt 0:1:30]} 40. Kf2 {[%emt 0:0:33]} Rd2+ {[%emt 0:0:11]} 41. Kf3 {[%emt 0:32:28]} Kg7 {[%emt 0:33:10]} 42. Nxb4 {[%emt 0:1:39]} Kf6 {[%emt 0:3:26]} 43. Bd5 {[%emt 0:5:20]} Ke5 {[%emt 0:2:38]} 44. Ke3 {[%emt 0:0:29]} Rd1 {[%emt 0:0:20]} 45. Bc6 {[%emt 0:3:25]} Kd6 {[%emt 0:2:10]} 46. Bf3 {[%emt 0:5:42]} Ra1 {[%emt 0:1:21]} 47. Kf4 {[%emt 0:3:3]} Kc5 {[%emt 0:3:2]} 48. Nd3+ {[%emt 0:0:23]} Kd6 {[%emt 0:0:9]} 49. Kg5 {[%emt 0:0:58]} Rxa2 {[%emt 0:0:16]} 50. Kxg6 {[%emt 0:0:22]} Ra3 {[%emt 0:0:36]} 51. Nf4 {[%emt 0:1:8]} Ke5 {[%emt 0:0:14]} 52. Kg5 {[%emt 0:0:14]} Ra7 {[%emt 0:1:2]} 53. h4 {[%emt 0:0:25]} Rg7+ {[%emt 0:0:22]} 54. Ng6+ {[%emt 0:0:10]} Ke6 {[%emt 0:0:10]} 55. h5 {[%emt 0:0:15]} Ra7 {[%emt 0:0:40]} 56. h6 {[%emt 0:0:23]} Rc7 {[%emt 0:0:23]} 57. h7 {[%emt 0:0:26]} 1-0

[Event "56th Biel Festival MTO 2023"]
[White "Collin,Moritz Valentin"]
[Black "Gomez Barrera,Javiera Belen"]
[Site "Biel"]
[Round "2.35"]
[Annotator "ChessBase"]
[Result "1-0"]
[Date "2023.07.19"]
[WhiteElo "2132"]
[BlackElo "2256"]
[PlyCount "75"]
[TimeControl "60"]

1. d4 {[%emt 0:0:0]} Nf6 {[%emt 0:0:0]} 2. c4 {[%emt 0:0:0]} g6 {[%emt 0:0:0]} 3. Nc3 {[%emt 0:0:0]} Bg7 {[%emt 0:0:0]} 4. e4 {[%emt 0:0:0]} d6 {[%emt 0:0:0]} 5. Be2 {[%emt 0:0:0]} O-O {[%emt 0:1:2]} 6. Be3 {[%emt 0:0:0]} Nc6 {[%emt 0:3:37]} 7. d5 {[%emt 0:0:0]} Ne5 {[%emt 0:0:16]} 8. Rc1 {[%emt 0:0:0]} Re8 {[%emt 0:7:46]} 9. Nf3 {[%emt 0:0:0]} Nxf3+ {[%emt 0:3:0]} 10. Bxf3 {[%emt 0:0:0]} e6 {[%emt 0:1:10]} 11. O-O {[%emt 0:0:0]} exd5 {[%emt 0:12:46]} 12. cxd5 {[%emt 0:3:59]} Bd7 {[%emt 0:0:13]} 13. Qb3 {[%emt 0:8:10]} b5 {[%emt 0:26:27]} 14. Rfe1 {[%emt 0:8:9]} a6 {[%emt 0:3:52]} 15. h3 {[%emt 0:4:17]} Rb8 {[%emt 0:6:38]} 16. Qc2 {[%emt 0:9:25]} Rc8 {[%emt 0:2:47]} 17. a3 {[%emt 0:10:15]} c5 {[%emt 0:5:26]} 18. dxc6 {[%emt 0:1:32]} Bxc6 {[%emt 0:0:1]} 19. Qd3 {[%emt 0:4:42]} Nd7 {[%emt 0:9:46]} 20. Qxd6 {[%emt 0:10:16]} Ne5 {[%emt 0:0:3]} 21. Qxd8 {[%emt 0:1:22]} Nxf3+ {[%emt 0:0:41]} 22. gxf3 {[%emt 0:0:19]} Rcxd8 {[%emt 0:1:4]} 23. Red1 {[%emt 0:12:40]} Bb7 {[%emt 0:8:35]} 24. Bb6 {[%emt 0:7:35]} Rxd1+ {[%emt 0:1:47]} 25. Rxd1 {[%emt 0:0:24]} f5 {[%emt 0:0:11]} 26. Bd4 {[%emt 0:4:0]} Bh6 {[%emt 0:0:17]} 27. Be3 {[%emt 0:0:45]} Bg7 {[%emt 0:1:59]} 28. exf5 {[%emt 0:6:51]} gxf5 {[%emt 0:3:17]} 29. f4 {[%emt 0:0:50]} Bf6 {[%emt 0:1:42]} 30. Rd7 {[%emt 0:4:42]} Re7 {[%emt 0:0:1]} 31. Rxe7 {[%emt 0:1:51]} Bxe7 {[%emt 0:0:1]} 32. Bd4 {[%emt 0:0:23]} Kf7 {[%emt 0:1:13]} 33. b4 {[%emt 0:1:45]} Bc6 {[%emt 0:0:24]} 34. Ne2 {[%emt 0:2:46]} Bf3 {[%emt 0:0:56]} 35. Kf1 {[%emt 0:0:27]} Bd5 {[%emt 0:0:31]} 36. Ng3 {[%emt 0:0:31]} Ke6 {[%emt 0:0:27]} 37. Nh5 {[%emt 0:0:21]} Be4 {[%emt 0:0:26]} 38. Ke2 {[%emt 0:0:28]} 1-0

[Event "56th Biel Festival MTO 2023"]
[White "Joly,Julien"]
[Black "Giacomini,Hector"]
[Site "Biel"]
[Round "2.36"]
[Annotator "ChessBase"]
[Result "1-0"]
[Date "2023.07.19"]
[WhiteElo "2249"]
[BlackElo "2126"]
[PlyCount "115"]
[TimeControl "60"]

1. d4 {[%emt 0:0:0]} d5 {[%emt 0:0:0]} 2. c4 {[%emt 0:0:0]} e6 {[%emt 0:0:0]} 3. Nf3 {[%emt 0:0:0]} Nf6 {[%emt 0:0:0]} 4. g3 {[%emt 0:0:0]} dxc4 {[%emt 0:0:0]} 5. Bg2 {[%emt 0:0:0]} c5 {[%emt 0:0:0]} 6. O-O {[%emt 0:0:0]} Nc6 {[%emt 0:0:0]} 7. Qa4 {[%emt 0:0:0]} Bd7 {[%emt 0:0:0]} 8. Qxc4 {[%emt 0:0:0]} b5 {[%emt 0:0:0]} 9. Qd3 {[%emt 0:0:0]} c4 {[%emt 0:0:0]} 10. Qc2 {[%emt 0:0:0]} Be7 {[%emt 0:0:0]} 11. e4 {[%emt 0:0:0]} O-O {[%emt 0:0:0]} 12. Rd1 {[%emt 0:0:0]} Rc8 {[%emt 0:0:0]} 13. Qe2 {[%emt 0:0:0]} Re8 {[%emt 0:8:18]} 14. Ne5 {[%emt 0:0:0]} h6 {[%emt 0:7:37]} 15. Be3 {[%emt 0:4:40]} Qc7 {[%emt 0:7:18]} 16. Nxc6 {[%emt 0:21:13]} Bxc6 {[%emt 0:3:26]} 17. Nd2 {[%emt 0:0:21]} Qb7 {[%emt 0:5:15]} 18. f3 {[%emt 0:0:51]} Red8 {[%emt 0:1:27]} 19. Rac1 {[%emt 0:0:37]} Nd7 {[%emt 0:13:44]} 20. Bh3 {[%emt 0:3:4]} Nb6 {[%emt 0:8:57]} 21. Bf2 {[%emt 0:19:57]} Bd7 {[%emt 0:3:39]} 22. f4 {[%emt 0:3:26]} b4 {[%emt 0:3:7]} 23. Nf3 {[%emt 0:4:1]} Rc7 {[%emt 0:8:55]} 24. Ne5 {[%emt 0:2:42]} Ba4 {[%emt 0:1:20]} 25. Rf1 {[%emt 0:2:22]} c3 {[%emt 0:2:44]} 26. b3 {[%emt 0:5:30]} Be8 {[%emt 0:0:12]} 27. Nf3 {[%emt 0:7:53]} Bc6 {[%emt 0:5:16]} 28. d5 {[%emt 0:6:50]} exd5 {[%emt 0:2:13]} 29. e5 {[%emt 0:0:30]} d4 {[%emt 0:4:1]} 30. Nxd4 {[%emt 0:0:0]} Bc5 {[%emt 0:4:18]} 31. Rfd1 {[%emt 0:7:48]} Bxd4 {[%emt 0:2:46]} 32. Rxd4 {[%emt 0:0:9]} Rxd4 {[%emt 0:0:19]} 33. Bxd4 {[%emt 0:0:30]} Bf3 {[%emt 0:4:33]} 34. Qb5 {[%emt 0:7:4]} Nd7 {[%emt 0:0:14]} 35. Qxb7 {[%emt 0:2:54]} Rxb7 {[%emt 0:0:17]} 36. Kf2 {[%emt 0:0:33]} Bd5 {[%emt 0:0:33]} 37. Bf1 {[%emt 0:3:6]} a5 {[%emt 0:0:50]} 38. Ba6 {[%emt 0:1:10]} Rb8 {[%emt 0:1:27]} 39. Ke3 {[%emt 0:0:59]} Kf8 {[%emt 0:2:50]} 40. Kd3 {[%emt 0:1:32]} Ke7 {[%emt 0:0:43]} 41. Rf1 {[%emt 0:0:0]} g6 {[%emt 0:0:0]} 42. g4 {[%emt 0:0:0]} Rg8 {[%emt 0:0:0]} 43. Bc4 {[%emt 0:0:0]} Bxc4+ {[%emt 0:0:55]} 44. Kxc4 {[%emt 0:0:0]} Rb8 {[%emt 0:1:37]} 45. f5 {[%emt 0:4:33]} gxf5 {[%emt 0:8:4]} 46. gxf5 {[%emt 0:0:8]} f6 {[%emt 0:3:35]} 47. e6 {[%emt 0:6:29]} Ne5+ {[%emt 0:0:12]} 48. Kd5 {[%emt 0:1:32]} Kf8 {[%emt 0:16:40]} 49. Bc5+ {[%emt 0:4:48]} Kg8 {[%emt 0:0:17]} 50. Rg1+ {[%emt 0:3:11]} Kh7 {[%emt 0:0:7]} 51. e7 {[%emt 0:2:52]} Nd3 {[%emt 0:3:56]} 52. Bd6 {[%emt 0:1:46]} Rc8 {[%emt 0:1:2]} 53. Rg2 {[%emt 0:6:18]} h5 {[%emt 0:2:39]} 54. h4 {[%emt 0:2:10]} Kh8 {[%emt 0:1:1]} 55. Re2 {[%emt 0:0:35]} Re8 {[%emt 0:0:14]} 56. Ke6 {[%emt 0:0:20]} Nc1 {[%emt 0:0:53]} 57. Rg2 {[%emt 0:0:26]} Nd3 {[%emt 0:0:21]} 58. Kf7 {[%emt 0:0:14]} 1-0

[Event "56th Biel Festival MTO 2023"]
[White "Vasquez Toledo,Cristian"]
[Black "Gemelli,Romain"]
[Site "Biel"]
[Round "2.37"]
[Annotator "ChessBase"]
[Result "1-0"]
[Date "2023.07.19"]
[WhiteElo "2233"]
[BlackElo "2122"]
[PlyCount "55"]
[TimeControl "60"]

1. e4 {[%emt 0:0:0]} c5 {[%emt 0:0:0]} 2. Nf3 {[%emt 0:0:0]} Nc6 {[%emt 0:0:0]} 3. Bb5 {[%emt 0:0:0]} d6 {[%emt 0:0:0]} 4. O-O {[%emt 0:0:0]} Bd7 {[%emt 0:0:0]} 5. Re1 {[%emt 0:0:0]} Nf6 {[%emt 0:0:0]} 6. h3 {[%emt 0:0:0]} a6 {[%emt 0:0:0]} 7. Bf1 {[%emt 0:0:0]} g5 {[%emt 0:0:0]} 8. d4 {[%emt 0:1:49]} g4 {[%emt 0:0:0]} 9. d5 {[%emt 0:0:17]} gxf3 {[%emt 0:0:0]} 10. dxc6 {[%emt 0:0:4]} Bxc6 {[%emt 0:0:0]} 11. Qxf3 {[%emt 0:0:4]} e6 {[%emt 0:0:0]} 12. c4 {[%emt 0:5:12]} Be7 {[%emt 0:0:0]} 13. Nc3 {[%emt 0:0:10]} Rg8 {[%emt 0:4:7]} 14. a3 {[%emt 0:6:22]} Qb6 {[%emt 0:13:20]} 15. b4 {[%emt 0:1:47]} Qc7 {[%emt 0:27:43]} 16. Bf4 {[%emt 0:21:30]} b6 {[%emt 0:8:46]} 17. b5 {[%emt 0:1:36]} axb5 {[%emt 0:0:48]} 18. cxb5 {[%emt 0:5:51]} Bb7 {[%emt 0:0:28]} 19. a4 {[%emt 0:1:12]} Nd7 {[%emt 0:6:43]} 20. Rad1 {[%emt 0:9:47]} O-O-O {[%emt 0:9:4]} 21. a5 {[%emt 0:4:59]} f5 {[%emt 0:5:8]} 22. Qd3 {[%emt 0:3:57]} fxe4 {[%emt 0:3:8]} 23. Nxe4 {[%emt 0:0:50]} e5 {[%emt 0:0:7]} 24. Bh2 {[%emt 0:5:48]} Nf6 {[%emt 0:6:5]} 25. Nxf6 {[%emt 0:0:19]} Bxf6 {[%emt 0:0:3]} 26. Qf5+ {[%emt 0:0:4]} Qd7 {[%emt 0:0:56]} 27. Qxf6 {[%emt 0:0:2]} Qxh3 {[%emt 0:1:34]} 28. Bg3 {[%emt 0:0:4]} 1-0

[Event "56th Biel Festival MTO 2023"]
[White "Ehsani,Yassamin"]
[Black "Ermitsch,Magnus"]
[Site "Biel"]
[Round "2.38"]
[Annotator "ChessBase"]
[Result "1-0"]
[Date "2023.07.19"]
[WhiteElo "2106"]
[BlackElo "2232"]
[PlyCount "68"]
[TimeControl "60"]

1. d4 {[%emt 0:0:0]} d5 {[%emt 0:0:0]} 2. c4 {[%emt 0:0:0]} c6 {[%emt 0:0:0]} 3. Nc3 {[%emt 0:0:0]} Nf6 {[%emt 0:0:0]} 4. e3 {[%emt 0:0:0]} e6 {[%emt 0:0:0]} 5. Nf3 {[%emt 0:0:0]} Nbd7 {[%emt 0:0:0]} 6. Be2 {[%emt 0:0:0]} b6 {[%emt 0:0:0]} 7. O-O {[%emt 0:0:0]} Bd6 {[%emt 0:0:0]} 8. Qc2 {[%emt 0:0:0]} Bb7 {[%emt 0:0:0]} 9. b3 {[%emt 0:9:47]} O-O {[%emt 0:0:0]} 10. Bb2 {[%emt 0:4:59]} Rc8 {[%emt 0:0:14]} 11. e4 {[%emt 0:12:2]} dxe4 {[%emt 0:12:40]} 12. Nxe4 {[%emt 0:0:6]} Nxe4 {[%emt 0:0:20]} 13. Qxe4 {[%emt 0:0:4]} Qe7 {[%emt 0:5:29]} 14. Bd3 {[%emt 0:10:31]} Nf6 {[%emt 0:0:52]} 15. Qh4 {[%emt 0:0:50]} h6 {[%emt 0:9:41]} 16. Rfe1 {[%emt 0:2:28]} Ba3 {[%emt 0:4:37]} 17. Bxa3 {[%emt 0:24:5]} Qxa3 {[%emt 0:0:3]} 18. g4 {[%emt 0:2:46]} Qe7 {[%emt 0:33:21]} 19. g5 {[%emt 0:0:30]} hxg5 {[%emt 0:5:29]} 20. Nxg5 {[%emt 0:0:14]} g6 {[%emt 0:1:10]} 21. Nh7 {[%emt 0:11:9]} Kg7 {[%emt 0:0:22]} 22. Nxf8 {[%emt 0:0:33]} Rxf8 {[%emt 0:0:18]} 23. Re3 {[%emt 0:0:42]} Rh8 {[%emt 0:9:52]} 24. Qf4 {[%emt 0:0:30]} Qd8 {[%emt 0:3:13]} 25. Rae1 {[%emt 0:2:57]} Rh5 {[%emt 0:4:24]} 26. Re5 {[%emt 0:3:36]} Qd6 {[%emt 0:2:29]} 27. Be2 {[%emt 0:3:15]} Rh8 {[%emt 0:2:30]} 28. c5 {[%emt 0:2:53]} Qe7 {[%emt 0:4:27]} 29. Bc4 {[%emt 0:2:33]} Bc8 {[%emt 0:1:46]} 30. b4 {[%emt 0:0:31]} b5 {[%emt 0:0:34]} 31. Bb3 {[%emt 0:0:38]} a5 {[%emt 0:0:44]} 32. a3 {[%emt 0:2:6]} axb4 {[%emt 0:1:22]} 33. axb4 {[%emt 0:0:5]} Qa7 {[%emt 0:0:16]} 34. R5e3 {[%emt 0:1:32]} Rh5 {[%emt 0:0:44]} 1-0

[Event "56th Biel Festival MTO 2023"]
[White "Urh,Zala"]
[Black "Adam,Rafael"]
[Site "Biel"]
[Round "2.39"]
[Annotator "ChessBase"]
[Result "1-0"]
[Date "2023.07.19"]
[WhiteElo "2231"]
[BlackElo "2117"]
[PlyCount "123"]
[TimeControl "60"]

1. e4 {[%emt 0:0:0]} c6 {[%emt 0:0:0]} 2. Nc3 {[%emt 0:0:0]} d5 {[%emt 0:0:0]} 3. Nf3 {[%emt 0:0:0]} dxe4 {[%emt 0:0:0]} 4. Nxe4 {[%emt 0:0:0]} Nf6 {[%emt 0:0:0]} 5. Qe2 {[%emt 0:0:0]} Nxe4 {[%emt 0:0:0]} 6. Qxe4 {[%emt 0:0:0]} Nd7 {[%emt 0:0:0]} 7. Bc4 {[%emt 0:0:0]} Nf6 {[%emt 0:0:0]} 8. Ne5 {[%emt 0:0:0]} e6 {[%emt 0:0:0]} 9. Qe2 {[%emt 0:0:0]} b5 {[%emt 0:0:0]} 10. Bd3 {[%emt 0:0:0]} Bb7 {[%emt 0:0:0]} 11. a4 {[%emt 0:0:0]} b4 {[%emt 0:15:32]} 12. b3 {[%emt 0:0:44]} a5 {[%emt 0:4:43]} 13. Bb2 {[%emt 0:1:56]} Bc5 {[%emt 0:1:49]} 14. Nc4 {[%emt 0:14:2]} Ba6 {[%emt 0:17:6]} 15. O-O {[%emt 0:2:43]} O-O {[%emt 0:21:24]} 16. Bxf6 {[%emt 0:7:16]} Qxf6 {[%emt 0:0:27]} 17. Bxh7+ {[%emt 0:8:56]} Kxh7 {[%emt 0:0:9]} 18. Qh5+ {[%emt 0:0:4]} Qh6 {[%emt 0:0:7]} 19. Qxc5 {[%emt 0:0:5]} Bxc4 {[%emt 0:0:11]} 20. Qxc4 {[%emt 0:0:26]} Qxd2 {[%emt 0:0:48]} 21. Rad1 {[%emt 0:1:24]} Qg5 {[%emt 0:0:49]} 22. Rd7 {[%emt 0:18:47]} Rad8 {[%emt 0:22:39]} 23. Qxc6 {[%emt 0:5:25]} Rxd7 {[%emt 0:0:17]} 24. Qxd7 {[%emt 0:0:6]} Qc5 {[%emt 0:2:41]} 25. Qd3+ {[%emt 0:1:6]} Kg8 {[%emt 0:0:6]} 26. Re1 {[%emt 0:0:40]} Rc8 {[%emt 0:0:57]} 27. Re2 {[%emt 0:1:4]} Qc7 {[%emt 0:5:42]} 28. Rd2 {[%emt 0:1:22]} Qe5 {[%emt 0:0:37]} 29. g3 {[%emt 0:1:17]} g6 {[%emt 0:1:55]} 30. h4 {[%emt 0:5:59]} Rc3 {[%emt 0:0:47]} 31. Qe2 {[%emt 0:11:37]} Qc5 {[%emt 0:0:25]} 32. Kh2 {[%emt 0:0:11]} Kg7 {[%emt 0:1:30]} 33. Qe4 {[%emt 0:2:43]} Kg8 {[%emt 0:4:51]} 34. Kg2 {[%emt 0:5:34]} Qc6 {[%emt 0:0:41]} 35. Qxc6 {[%emt 0:3:17]} Rxc6 {[%emt 0:0:5]} 36. c4 {[%emt 0:1:57]} bxc3 {[%emt 0:0:18]} 37. Rc2 {[%emt 0:0:3]} Kf8 {[%emt 0:1:22]} 38. Kf3 {[%emt 0:0:9]} Ke7 {[%emt 0:0:13]} 39. Ke3 {[%emt 0:0:40]} Kd6 {[%emt 0:0:35]} 40. Kd3 {[%emt 0:0:18]} Kd5 {[%emt 0:0:51]} 41. Rxc3 {[%emt 0:34:6]} Rb6 {[%emt 0:30:50]} 42. Kc2 {[%emt 0:4:4]} e5 {[%emt 0:0:0]} 43. Rd3+ {[%emt 0:0:0]} Kc5 {[%emt 0:0:0]} 44. Rf3 {[%emt 0:0:0]} f6 {[%emt 0:0:0]} 45. g4 {[%emt 0:0:0]} Rb4 {[%emt 0:0:0]} 46. Rc3+ {[%emt 0:0:0]} Kd5 {[%emt 0:0:0]} 47. Rc4 {[%emt 0:0:0]} Rb8 {[%emt 0:0:0]} 48. h5 {[%emt 0:0:0]} Rg8 {[%emt 0:1:56]} 49. Kd3 {[%emt 0:0:0]} Rb8 {[%emt 0:1:24]} 50. Kc3 {[%emt 0:0:0]} Rh8 {[%emt 0:1:10]} 51. hxg6 {[%emt 0:0:0]} Rg8 {[%emt 0:0:6]} 52. b4 {[%emt 0:0:0]} axb4+ {[%emt 0:0:15]} 53. Rxb4 {[%emt 0:0:0]} Rxg6 {[%emt 0:0:17]} 54. a5 {[%emt 0:0:0]} Kc5 {[%emt 0:1:20]} 55. a6 {[%emt 0:0:0]} Rg7 {[%emt 0:0:33]} 56. Ra4 {[%emt 0:0:0]} Ra7 {[%emt 0:0:31]} 57. Kd3 {[%emt 0:0:0]} Kd5 {[%emt 0:0:20]} 58. Ra5+ {[%emt 0:0:0]} Kd6 {[%emt 0:0:13]} 59. Ke4 {[%emt 0:0:0]} Ke6 {[%emt 0:0:16]} 60. Ra1 {[%emt 0:0:0]} Ke7 {[%emt 0:0:50]} 61. Kd5 {[%emt 0:0:0]} Kd7 {[%emt 0:0:9]} 62. Ra2 {[%emt 0:0:0]} 1-0

[Event "56th Biel Festival MTO 2023"]
[White "Lorscheid,Gerhard"]
[Black "Frey,Fabian"]
[Site "Biel"]
[Round "2.40"]
[Annotator "ChessBase"]
[Result "0-1"]
[Date "2023.07.19"]
[WhiteElo "2099"]
[BlackElo "2230"]
[PlyCount "92"]
[TimeControl "60"]

1. c4 {[%emt 0:0:0]} c6 {[%emt 0:0:0]} 2. Nf3 {[%emt 0:0:0]} d5 {[%emt 0:0:0]} 3. b3 {[%emt 0:0:0]} Bf5 {[%emt 0:0:0]} 4. Bb2 {[%emt 0:0:0]} e6 {[%emt 0:0:0]} 5. g3 {[%emt 0:0:0]} h6 {[%emt 0:0:0]} 6. Bg2 {[%emt 0:0:0]} Nf6 {[%emt 0:0:0]} 7. O-O {[%emt 0:0:0]} Be7 {[%emt 0:0:0]} 8. d3 {[%emt 0:2:36]} O-O {[%emt 0:0:0]} 9. Nbd2 {[%emt 0:1:50]} Bh7 {[%emt 0:0:0]} 10. a3 {[%emt 0:7:29]} a5 {[%emt 0:0:0]} 11. Qc2 {[%emt 0:0:12]} Nbd7 {[%emt 0:0:0]} 12. Rab1 {[%emt 0:8:1]} c5 {[%emt 0:16:59]} 13. Rfd1 {[%emt 0:15:49]} Rc8 {[%emt 0:4:37]} 14. Rbc1 {[%emt 0:6:21]} d4 {[%emt 0:15:56]} 15. b4 {[%emt 0:1:41]} b6 {[%emt 0:4:47]} 16. Rb1 {[%emt 0:2:18]} e5 {[%emt 0:2:49]} 17. bxa5 {[%emt 0:0:16]} bxa5 {[%emt 0:0:9]} 18. Bc1 {[%emt 0:0:40]} Qc7 {[%emt 0:1:43]} 19. Ne1 {[%emt 0:6:20]} Rb8 {[%emt 0:0:28]} 20. Rb5 {[%emt 0:0:9]} Ne8 {[%emt 0:9:22]} 21. Rxb8 {[%emt 0:11:38]} Nxb8 {[%emt 0:0:7]} 22. Bb2 {[%emt 0:0:11]} f5 {[%emt 0:2:9]} 23. Rb1 {[%emt 0:3:41]} Nd6 {[%emt 0:1:6]} 24. Bd5+ {[%emt 0:3:17]} Kh8 {[%emt 0:0:11]} 25. Bc1 {[%emt 0:0:11]} Nd7 {[%emt 0:2:13]} 26. Bg2 {[%emt 0:8:46]} Nf6 {[%emt 0:6:22]} 27. Qb3 {[%emt 0:1:37]} Nd7 {[%emt 0:7:34]} 28. Qc2 {[%emt 0:0:16]} Bg6 {[%emt 0:0:33]} 29. Nb3 {[%emt 0:5:15]} Bd8 {[%emt 0:4:52]} 30. Bd2 {[%emt 0:1:24]} Qa7 {[%emt 0:0:20]} 31. Bc1 {[%emt 0:1:9]} Bh5 {[%emt 0:4:57]} 32. Bc6 {[%emt 0:2:49]} Nb8 {[%emt 0:1:30]} 33. Bd5 {[%emt 0:1:42]} Bc7 {[%emt 0:1:46]} 34. f4 {[%emt 0:2:38]} exf4 {[%emt 0:11:0]} 35. Bxf4 {[%emt 0:0:30]} Nd7 {[%emt 0:0:9]} 36. Nxd4 {[%emt 0:4:9]} cxd4 {[%emt 0:2:19]} 37. Bxd6 {[%emt 0:0:7]} Bxd6 {[%emt 0:0:59]} 38. Rb7 {[%emt 0:0:6]} Qc5 {[%emt 0:3:3]} 39. Rxd7 {[%emt 0:0:10]} f4 {[%emt 0:0:43]} 40. gxf4 {[%emt 0:2:5]} Bxf4 {[%emt 0:0:45]} 41. Nf3 {[%emt 0:30:22]} Qc8 {[%emt 0:0:0]} 42. Be6 {[%emt 0:0:0]} Qc6 {[%emt 0:2:16]} 43. Bh3 {[%emt 0:0:0]} Be3+ {[%emt 0:2:7]} 44. Kh1 {[%emt 0:0:0]} Bxf3+ {[%emt 0:1:59]} 45. exf3 {[%emt 0:0:0]} Qxf3+ {[%emt 0:0:30]} 46. Bg2 {[%emt 0:0:0]} Qg4 {[%emt 0:0:14]} 0-1